Cogmind - Beta 15 @@@ ROGUE MODE // 2025.08.17 @ 19:04:51 Player: TapeIsSticky Result: Destroyed by W6-N0E(R) with Subdweller Laser Performance ------------- Evolutions (0) 0 Regions Visited (2) 400 Robots Destroyed (36) 180 Value Destroyed (626) 626 Prototype IDs (11) 220 Alien Tech Used (0) 0 Bonus (0) 0 TOTAL SCORE: 1426 Bonus ------- None Cogmind --------- Core Integrity 0/250 Matter 265/300 Energy 100/100 System Corruption 0% Temperature Cool (6) Movement Rolling (120) Ox1 Location -10/Subcaves Parts ------- > --- POWER (1) -------- (None) > --- PROPULSION (2) --- Makeshift Leg Subdweller Monowheel > --- UTILITY (2) ------ Large Storage Unit Core Shielding > --- WEAPON (2) ------- Light Assault Rifle Subdweller Machine Gun > --- INVENTORY (15) --- Ion Engine Subdweller Power Source Subdweller Power Source Small Storage Unit Huge Storage Unit Subdweller Optics Seismic Detector Seismic Detector Seismic Detector Power Bank Assault Rifle Light Assault Rifle Mining Laser Peak State ------------ > --- POWER ------------ (None) > --- PROPULSION ------- Makeshift Leg Subdweller Monowheel > --- UTILITY ---------- Large Storage Unit Core Shielding > --- WEAPON ----------- Light Assault Rifle Subdweller Machine Gun > --- INVENTORY -------- Ion Engine Subdweller Power Source Subdweller Power Source Small Storage Unit Huge Storage Unit Subdweller Optics Seismic Detector Seismic Detector Seismic Detector Power Bank Assault Rifle Light Assault Rifle Mining Laser [Rating: 13] Favorites ----------- Power Ion Engine Engine Ion Engine Power Core Light Nuclear Core Propulsion Light Treads Treads Light Treads Leg Makeshift Leg Wheel Compact Wheel Utility Large Storage Unit Device Seismic Detector Storage Large Storage Unit Protection Core Shielding Weapon Medium Laser Energy Gun Medium Laser Ballistic Gun Assault Rifle Special Weapon Mining Laser Build | -11 -10 -10 ------- Run | Yrd Mat Sub Slots Evolved . | . . . Power . | . . . Propulsion . | . . . Utility . | . . . Weapon . | . . . Parts Attached 20 | 9 3 8 Power 3 | 2 1 . Engine 2 | 2 . . Core 1 | . 1 . Reactor . | . . . Propulsion 6 | 2 . 4 Treads 3 | 2 . 1 Leg 1 | . . 1 Wheel 2 | . . 2 Hover . | . . . Flight . | . . . Utility 4 | 2 1 1 Device 1 | 1 . . Storage 2 | 1 1 . Processor . | . . . Hackware . | . . . Protection 1 | . . 1 Artifact . | . . . Weapon 7 | 3 1 3 Energy Gun 2 | 2 . . Energy Cannon . | . . . Ballistic Gun 4 | 1 1 2 Ballistic Cannon . | . . . Launcher . | . . . Special Weapon 1 | . . 1 Impact Weapon . | . . . Slashing Weapon . | . . . Piercing Weapon . | . . . Special Melee Weapon . | . . . Unidentified Prototypes . | . . . Parts Lost 7 | . . 7 Power 1 | . . 1 Propulsion 4 | . . 4 Utility . | . . . Weapon 2 | . . 2 Highest Loss Streak 5 | . . 5 To Critical Strikes . | . . . Average Backups 10 | 1 7 14 Power 2 | . 1 3 Propulsion 1 | . 1 1 Utility 4 | . 3 6 Weapon 2 | . 1 3 Tool/Special . | . . . Unused Backups 10 | . . 10 Power 3 | . . 3 Propulsion . | . . . Utility 6 | . . 6 Weapon 1 | . . 1 Tool/Special . | . . . Average Slot Usage (%) 99 | . 99 98 Engine 7 | . 13 . Core 6 | . . 13 Treads 26 | . 27 25 Device 13 | . 14 12 Storage 14 | . 14 14 Energy Gun 13 | . 14 12 Ballistic Gun 14 | . 14 14 Peak Build Rating 13 | 7 10 13 Average Rating 8 | 5 7 10 On Entrance 5 | . 7 10 Naked Turns . | . . . Heaviest Build 30 | 14 30 30 Greatest Support 40 | 40 40 40 Greatest Overweight (x) 3 | 3 . 1 Average Overweight (x) . | . . . Largest Inventory Capacity 15 | 8 15 15 Average Capacity 14 | 7 14 15 Most Carried 15 | 4 15 15 Average Carried 10 | 1 7 14 Final Capacity 15 | 8 15 15 Final Carried 15 | 3 15 13 Class Distribution -------------------- 100% | Mutant Dominant Class ---------------- Mutant | -10/Materials Mutant | -10/Subcaves Resources | -11 -10 -10 ----------- Run | Yrd Mat Sub Matter Collected 679 | 310 147 222 Remotely . | . . . Salvage Created 999 | 159 639 201 Parts 65 | 15 39 11 Haulers Intercepted 2 | . 2 . Recyclers Shooed . | . . . Parts Field Recycled . | . . . Retrieved Matter . | . . . Parts Self-Destructed 13 | . . 13 Prevented . | . . . Kills | -11 -10 -10 ------- Run | Yrd Mat Sub Combat Hostiles Destroyed 20 | . 15 5 Guns 20 | . 15 5 Classes Destroyed 8 | 2 5 1 Worker 3 | . 3 . Tunneler 6 | 6 . . Hauler 2 | . 2 . Recycler 2 | 1 1 . Watcher 3 | . 3 . Swarmer 9 | . 9 . Grunt 6 | . 6 . Subdweller 5 | . . 5 Best Kill Streak 4 | 4 3 2 Combat Bots Only 3 | . 3 2 Max Kills in Single Turn 1 | 1 1 1 Gunslinging . | . . . Exploded . | . . . Melee . | . . . Uniques/NPCs Destroyed . | . . . Combat | -11 -10 -10 -------- Run | Yrd Mat Sub Hostile Shots Fired 115 | . 58 57 Missed 32 | . 16 16 Hits 83 | . 42 41 Projectile 83 | . 42 41 Damage Taken 1398 | . 465 933 Core 257 | . 105 152 Absorbed by Shields . | . . . Redirected to Shielding 32 | . . 32 Regen/Repaired (Parts) 122 | . 122 . Core Remaining (%) 100 | 100 . . Volleys Fired 141 | 20 59 62 Largest 2 | 2 2 2 Hottest 100 | 70 70 100 Shots Fired 259 | 40 113 106 Gun 242 | 40 113 89 Cannon . | . . . Launcher . | . . . Special 17 | . . 17 Kinetic 146 | 20 59 67 Thermal 113 | 20 54 39 Explosive . | . . . Electromagnetic . | . . . Robot Hit Streak 19 | 5 7 19 Robot Miss Streak 6 | 3 6 1 Penetration Max . | . . . Secondary Targets 3 | . 3 . Max Gunslinging Chain 1 | . 1 . Shots Hit Robots 167 | 22 66 79 Core Hits 63 | 10 37 16 Critical Kills . | . . . Critical Parts Destroyed 1 | . 1 . Critical Strikes 11 | 2 6 3 Burn 9 | 2 5 2 Destroy 2 | . 1 1 Melee Attacks . | . . . Impact . | . . . Slashing . | . . . Piercing . | . . . Sneak Attacks . | . . . Combat Hostiles . | . . . Follow-up Attacks . | . . . Damage Inflicted 2159 | 254 919 986 Guns 2054 | 254 814 986 Cannons . | . . . Explosions 87 | . 87 . Melee . | . . . Ramming 18 | . 18 . Kinetic 1148 | 65 360 723 Thermal 993 | 189 541 263 Explosive . | . . . Electromagnetic . | . . . Impact . | . . . Slashing . | . . . Piercing . | . . . Highest Corruption . | . . . Average Corruption . | . . . Corruption Purged . | . . . Corruption Blocked . | . . . Overload Shots . | . . . Overflow Damage . | . . . Projectiles . | . . . Explosions . | . . . Melee . | . . . Knockbacks . | . . . Impact . | . . . Kinetic . | . . . Secondary . | . . . Self-Inflicted Damage 65 | . 65 . Shots 1 | . 1 . Rammed 3 | . 3 . Targets Rammed 5 | . 5 . Kicked . | . . . Crushed 2 | . 2 . Highest Temperature 170 | 170 117 . Average Temperature 44 | 75 33 . Received Heat Transfer 243 | . 135 108 Siege Activations . | . . . Martial Activations . | . . . Shielding Activations . | . . . Robots Disrupted . | . . . Combat Hostiles . | . . . Robots Corrupted . | . . . Combat Hostiles . | . . . Parts Fried . | . . . Impact Corruptions . | . . . Robots Melted . | . . . Combat Hostiles . | . . . Parts Melted 6 | 1 4 1 Heat Transferred 3380 | 703 1752 925 Parts Sabotaged . | . . . Parts Stolen . | . . . Parts Stripped . | . . . Power Chain Reactions . | . . . Alert | -11 -10 -10 ------- Run | Yrd Mat Sub Maximum Alert Level 1 | . 1 . Low Security (%) 68 | 100 65 . Level 1 31 | . 34 . Level 2 . | . . . Level 3 . | . . . Level 4 . | . . . Level 5 . | . . . High Security . | . . . Max Security . | . . . Peak Influence 295 | 15 295 . Initial 6 | . 6 . Average 80 | 1 87 . Influence Increases 536 | 35 501 . Destroy 0b10 Robot/C 300 | . 300 . Destroy 0b10 Robot/NC 80 | 35 45 . Destroy Leader 70 | . 70 . Successful Hack 17 | . 17 . Disable Machine 15 | . 15 . Destroy Structure 24 | . 24 . Lose Combat Pursuer 30 | . 30 . Influence Decreases 536 | 25 222 289 Entered New Map 144 | . 4 140 Time Decay 392 | 25 218 149 Squads Dispatched 2 | . 2 . Investigation . | . . . Extermination . | . . . Reinforcement 2 | . 2 . Assault . | . . . Garrison . | . . . Intercept . | . . . Searches Triggered . | . . . Construction Impeded . | . . . Haulers Reinforced . | . . . Active Scanning Responses . | . . . Cargo Convoy Interrupts . | . . . Stealth | -11 -10 -10 --------- Run | Yrd Mat Sub Distress Signals . | . . . Communications Jammed . | . . . Distress Signals . | . . . Times Spotted 28 | . 21 7 Peak Tracking Total 4 | . 4 3 Tactical Retreats 2 | . 2 . Traps | -11 -10 -10 ------- Run | Yrd Mat Sub Traps Triggered 2 | . . 2 Indirectly . | . . . Trap Hack Attempts . | . . . Triggered . | . . . Disarmed . | . . . Reprogrammed . | . . . Reused . | . . . Traps Extracted . | . . . Installed . | . . . Triggered . | . . . Machines | -11 -10 -10 ---------- Run | Yrd Mat Sub Machines Disabled 2 | . 1 1 Max in Single Turn 1 | . 1 1 Machines Repaired . | . . . Machines Dismantled . | . . . Machines Sabotaged . | . . . Overloaded Fab Kills . | . . . Hacking | -11 -10 -10 --------- Run | Yrd Mat Sub Machines Accessed 10 | . 8 2 Terminals 7 | . 7 . Fabricators . | . . . Repair Stations 1 | . 1 . Recycling Units . | . . . Scanalyzers . | . . . Garrison Access . | . . . Total Hacks 35 | . 21 14 Successful 26 | . 12 14 Failed 9 | . 9 . Catastrophic 2 | . 2 . Database Lockouts . | . . . Manual 19 | . 19 . Terminals 19 | . 19 . Fabricators . | . . . Repair Stations 2 | . 2 . Recycling Units . | . . . Scanalyzers . | . . . Garrison Access . | . . . Terminal Hacks 17 | . 3 14 Record 13 | . . 13 Robot Analysis 3 | . 3 . Proto ID Catalog 1 | . . 1 Fabricator Hacks . | . . . Repair Station Hacks 2 | . 2 . Scan Component 1 | . 1 . Repair 1 | . 1 . Recycling Unit Hacks . | . . . Scanalyzer . | . . . Garrison Access Hacks . | . . . Unauthorized Hacks 7 | . 7 . Terminals 7 | . 7 . Botnet 1 | . 1 . Skim 6 | . 6 . Fabricators . | . . . Repair Stations . | . . . Recycling Units . | . . . Scanalyzers . | . . . Garrison Access . | . . . Data Cores Recovered . | . . . Used . | . . . Hacking Detections 7 | . 7 . Full Trace Events 1 | . 1 . Feedback Events . | . . . Feedback Blocked . | . . . Robot Schematics Acquired . | . . . Robots Built . | . . . Authchips . | . . . Time . | . . . Total Robot Build Rating . | . . . Part Schematics Acquired . | . . . Parts Built . | . . . Authchips . | . . . Time . | . . . Total Part Build Rating . | . . . Parts Repaired 1 | . 1 . Time 26 | . 26 . Parts Recycled . | . . . Recycled Matter . | . . . Retrieved Matter . | . . . Retrieved Components . | . . . Parts Scanalyzed . | . . . Part Schematics Acquired . | . . . Parts Damaged . | . . . Bothacking | -11 -10 -10 ------------ Run | Yrd Mat Sub Used RIF Installer . | . . . Robots Hacked . | . . . Non-combat . | . . . Combat . | . . . Robot Hacks Applied . | . . . Relay Couplers Released . | . . . Fabnet Peak Effective % . | . . . Robots Rewired . | . . . Allies Hacked . | . . . Hacks Repelled . | . . . Allies | -11 -10 -10 -------- Run | Yrd Mat Sub Total Allies . | . . . Largest Group . | . . . Highest-Rated Group . | . . . Highest-Rated Ally . | . . . Total Orders . | . . . Ally Attacks . | . . . Total Damage . | . . . Kills . | . . . Allies Corrupted . | . . . Allies Melted . | . . . Intel | -11 -10 -10 ------- Run | Yrd Mat Sub Active Infowar (turns) 4355 | 3 2565 1787 Seismic 4355 | 3 2565 1787 Robot Analysis Total 3 | . 3 . Derelict Logs Recovered . | . . . Drone Launches . | . . . Drone Recoveries . | . . . Exploration | -11 -10 -10 ------------- Run | Yrd Mat Sub Turns Passed 4761 | 233 2565 1963 Spaces Moved 1288 | 56 626 606 Core 16 | 16 . . Treads 1123 | 40 626 457 Legs . | . . . Wheels 149 | . . 149 Hover . | . . . Flight . | . . . Fastest Speed 50 | 50 160 115 Average Speed 154 | 144 160 148 Slowest Speed 200 | 200 160 160 Overloaded Moves . | . . . Propulsion Burnouts . | . . . Robots Hopped . | . . . Potential Cave-ins . | . . . Cave-ins Triggered . | . . . Exploration Rate (%) 42 | 6 93 29 Regions Visited 2 Branch Regions 1 Pre-discovered Areas 2 | . 1 1 Known Exits Taken 1 | . 1 . Unknown Exits Taken 1 | 1 . . Scrap Searched . | . . . Spaces Dug . | . . . Terrain Destroyed 27 | . 27 . Melee . | . . . Projectile . | . . . AOE 27 | . 27 . Terrain Rammed . | . . . Walls Destroyed . | . . . Machines Disabled . | . . . Actions | -11 -10 -10 --------- Run | Yrd Mat Sub Total 3775 | 168 2077 1530 Wait 2293 | 81 1375 837 Move 1286 | 55 625 606 Hop . | . . . Pick Up 19 | 3 9 7 Fast Attach 7 | 6 1 . Attach 7 | 1 . 6 Detach . | . . . Swap 13 | 2 3 8 Drop 4 | . . 4 Fire 141 | 20 59 62 Melee . | . . . Ram . | . . . Kick . | . . . Crush 5 | . 5 . Escape Stasis . | . . . Rewire . | . . . Trap . | . . . Miscellaneous . | . . . Route ------- -11/Scrapyard -10/Materials (discovered 5 exits: [*Mat x3] / [*Min] / *Sub) -10/Subcaves (discovered 2 exits: [*Mat] / Rec) History --------- Turn | Location | Event 7 | -11/Scrapyard | Discovered new exit (range 16) 234 | -11/Scrapyard | Entered Materials 300 | -10/Materials | Build established: Mutant 313 | -10/Materials | Discovered new exit (range 15) 1724 | -10/Materials | Discovered new exit (range 7) 1939 | -10/Materials | Discovered new exit (range 8) 2175 | -10/Materials | Discovered new exit (range 16) 2373 | -10/Materials | Learned Storage stockpile data 2412 | -10/Materials | Repaired Lgt. Treads 2429 | -10/Materials | Learned 4 Recycling zone layouts 2476 | -10/Materials | Identified exit to Subcaves 2601 | -10/Materials | Learned 2 Mines zone layouts 2712 | -10/Materials | Learned Storage terminal intel 2799 | -10/Materials | Entered Subcaves 2800 | -10/Subcaves | Approached by a straggling Scientist 3062 | -10/Subcaves | Visited 4L-MR0's lab 3083 | -10/Subcaves | Found Power Bank 3286 | -10/Subcaves | Visited Clippyterm 3290 | -10/Subcaves | Identified exit to Recycling 3290 | -10/Subcaves | Learned location of Deep Caves (-7) 4062 | -10/Subcaves | Discovered new exit (range 10) 4487 | -10/Subcaves | Core integrity fell below 50% 4714 | -10/Subcaves | Core integrity fell below 20% 4746 | -10/Subcaves | Lost 5 parts (1p2n2w) 4762 | -10/Subcaves | Destroyed by W6-N0E(R) with Subdweller Laser Last Messages --------------- 04716_ Acquired 3 matter. 04717_ TG-7OD(R) destroyed. 04718_ Acquired 3 matter. 04718_ Subatomizers dissect the Disposable Heat Sink. 04721_ Acquired 10 matter. 04722_ Acquired 8 matter. 04728_ Subatomizers dissect the Disposable Heat Sink. 04737_ W6-N0E(R) affixes Scrap Shield Fragment to Scrap Shield. 04741_ Subatomizers dissect the Disposable Heat Sink. 04748_ W6-N0E(R) affixes Scrap Shield Fragment to Scrap Shield. 04753_ W6-N0E(R) suffers critical hit (Destroy). 04754_ Subatomizers dissect the Disposable Heat Sink. 04761_ W6-N0E(R) affixes Scrap Shield Fragment to Scrap Shield. Map ----- +----------------------------------------------------+ | ! #?????????????????????????????????????????? | | ####??????????????????????????????????????? | | #??????????????????????????????????????? | | #??????????????????????????????????????? | | ##??????????????????????????????????????? | | ## ##???????????????????????????????????????? | | ?#### #????????????????????????????????????????? | | ???## #????????????????????????????????????????? | | ???# ##???????????????????????????????????????? | | #??# #???????????????????????????????????????? | | #?# #???????????????????????????????????????? | | ## ##???????????????????????????????????????? | | ##????????????????????????????????????????? | | # #?????????????????????????????????????????? | | # #####??????????????????????????????????????? | | # ### #??????????????????????????????????????? | | # # #???????#####??????????????????????????? | | # #??????## # ??????????????????????????? | | # # # #?????## ???????????????????????????? | | #### ###??## ???????????????#????????????? | | ###???## #?## #????????????? ????????????? | | ??##???# ### ##???????????" ?????????????? | | ??# #??# ## O #####??????="" ?""?????????? | | ??# #?# ## *###### "" ""?????????? | | ??# ## # ## "" #???????????? | | ???# ### ! @ *=[ """#??????????????? | | ???## #?# ##""" &!*!% ##??????????????? | | ????# * ### ## """##R ! # ##???????????????? | | ????# "#######?#????????????????? | | ????## ##????????????????????????? | | ?????## ## ##?????????????????????????? | | ??????# ## #####??????????????????????????? | | ??????##?##########??????????????????????????????? | | ?????????????????????????????????????????????????? | | ?????????????????????????????????????????????????? | | ?????????????????????????????????????????????????? | | ?????????????????????????????????????????????????? | | ?????????????????????????????????????????????????? | | ?????????????????????????????????????????????????? | | ?????????????????????????????????????????????????? | | ?????????????????????????????????????????????????? | | ?????????????????????????????????????????????????? | | ?????????????????????????????????????????????????? | | ?????????????????????????????????????????????????? | | ?????????????????????????????????????????????????? | | ?????????????????????????????????????????????????? | | ?????????????????????????????????????????????????? | | | | | | | +----------------------------------------------------+ Best States ------------- Heat Dissipation 25 Energy Generation 14 Energy Capacity 250 Matter Stores 300 Matter Capacity 300 Sight Range 16 Terrain Scan Density 10 Core Shielding 20 Evasion (%) 40 Recoil Reduction 2 Item Schematics ----------------- None Robot Schematics ------------------ None Fabricated ------------ Nothing Repaired ---------- Lgt. Treads | 12% | -10/Materials Alien Tech Used ----------------- None Achievements -------------- None Challenges ------------ None Game ------ Seed ColdRefineryAccelerator Manual? 0 Play Time 00:15:27 Cumulative 177.3 hours Start 2025.08.17 @ 18:49:34 End 2025.08.17 @ 19:04:51 Sessions 1 Manual Loads 0 Difficulty Rogue Special Mode None Game No. 92 Rogue 92 Adventurer 0 Explorer 0 Win Type - Total 19 Types 9/1/5/1/0/1/1/1/0/0 Lore% 65 Gallery% 62 Achievement% 70 Wizard Run 0 Options --------- Layout 1 ASCII 0 Keyboard 0 Movement Arrows Keybinds 0 Fullscreen 2 Font 24/Tamsyn Map View 50x35 Zoom Use 0% Tactical HUD 1 Map Filters NONE Filters NONE Steam 1 RUN: d26b8850-847d-48da-af8f-f90428a239d3